bitfinex/quotes_BTCUSD_20250822
["timestamp","ask_amount","ask_price","bid_price","bid_amount"]
[1755859152994,6.80720134,112870.0,112860.0,0.0384463]
[1755859153225,6.95608134,112870.0,112860.0,0.0384463]
[1755859153400,6.95908134,112870.0,112860.0,0.0384463]
[1755859153639,7.97928069,112870.0,112860.0,0.0384463]
[1755859153845,7.99827323,112870.0,112860.0,0.0384463]
[1755859154530,7.97928069,112870.0,112860.0,0.0384463]
[1755859154734,7.82940069,112870.0,112860.0,0.0384463]
[1755859154946,8.03724774,112870.0,112860.0,0.0384463]
[1755859155164,8.0233757,112870.0,112860.0,0.0384463]
[1755859155582,8.0203757,112870.0,112860.0,0.0384463]
[1755859155818,7.8704957,112870.0,112860.0,0.0384463]
[1755859156023,8.02016714,112870.0,112860.0,0.0384463]
[1755859156589,8.02216714,112870.0,112860.0,0.0384463]
[1755859156787,8.02016714,112870.0,112860.0,0.0384463]
[1755859157431,8.02116714,112870.0,112860.0,0.0384463]
[1755859158199,8.03500723,112870.0,112860.0,0.0384463]
[1755859161183,8.03499963,112870.0,112860.0,0.0384463]
[1755859161629,8.03499934,112870.0,112860.0,0.0384463]
[1755859161851,7.88511934,112870.0,112860.0,0.0384463]
[1755859162033,8.03499934,112870.0,112860.0,0.0384463]
[1755859162192,8.03499934,112870.0,112860.0,0.0382833]
[1755859163301,8.03499934,112870.0,112860.0,0.03823783]
[1755859170296,8.03498504,112870.0,112860.0,0.03823783]
[1755859170687,7.81405558,112870.0,112860.0,0.03823783]
[1755859171125,7.81405535,112870.0,112860.0,0.03823783]
[1755859173539,7.8140203,112870.0,112860.0,0.03823783]
[1755859174470,7.83298728,112870.0,112860.0,0.03823783]
[1755859178317,7.81911425,112870.0,112860.0,0.03823783]
[1755859179169,7.78013568,112870.0,112860.0,0.03823783]
[1755859179524,7.75750282,112870.0,112860.0,0.03823783]
[1755859179759,7.78016516,112870.0,112860.0,0.03823783]
[1755859181202,7.78841123,112870.0,112860.0,0.03823783]
[1755859181416,7.80228426,112870.0,112860.0,0.03823783]
[1755859183148,7.80028426,112870.0,112860.0,0.03823783]
[1755859183619,7.80428426,112870.0,112860.0,0.03823783]
[1755859183826,7.80328999,112870.0,112860.0,0.03823783]
[1755859184266,7.80528999,112870.0,112860.0,0.03923783]
[1755859185117,7.84599712,112870.0,112860.0,0.03923783]
[1755859185340,0.5172264,112850.0,112840.0,0.0442847]
[1755859185555,0.5172264,112850.0,112840.0,0.0463947]
[1755859185556,0.82833752,112850.0,112840.0,0.0463947]
[1755859185757,0.84481922,112850.0,112840.0,0.0463947]
[1755859185967,0.87147822,112850.0,112840.0,0.0463947]
[1755859186122,0.885352,112850.0,112840.0,0.0463947]
[1755859186347,1.40177112,112850.0,112840.0,0.0487947]
[1755859186547,1.55361112,112850.0,112840.0,0.04893977]
[1755859186897,1.89367757,112850.0,112840.0,0.04893977]
[1755859187070,1.74483757,112850.0,112840.0,0.04893977]
[1755859187282,1.89467757,112850.0,112840.0,0.04893977]
[1755859187517,1.92615505,112850.0,112840.0,0.04893977]
[1755859187720,1.9506198,112850.0,112840.0,0.04893977]
[1755859187928,1.97330562,112850.0,112840.0,0.04893977]
[1755859188326,5.80391327,112850.0,112840.0,0.04653977]
[1755859188490,6.82411262,112850.0,112840.0,0.04893977]
[1755859188690,6.81792558,112850.0,112840.0,0.04893977]
[1755859188920,6.77697921,112850.0,112840.0,0.04893977]
[1755859189123,6.79085415,112850.0,112840.0,0.04893977]
[1755859189708,6.79085425,112850.0,112840.0,0.04893977]
[1755859189911,6.75937677,112850.0,112840.0,0.04893977]
[1755859191304,6.75937677,112850.0,112840.0,0.04653977]
[1755859192252,6.75937677,112850.0,112840.0,0.04893977]
[1755859193067,6.75937677,112850.0,112840.0,0.04653977]
[1755859193974,6.75937677,112850.0,112840.0,0.04893977]
[1755859194717,6.75937677,112850.0,112840.0,0.04653977]
[1755859196360,6.74550183,112850.0,112840.0,0.04653977]
[1755859197534,6.7228165,112850.0,112840.0,0.04653977]
[1755859198543,5.70261715,112850.0,112840.0,0.04653977]
[1755859198948,6.7228165,112850.0,112840.0,0.04653977]
[1755859199185,6.73669144,112850.0,112840.0,0.04653977]
[1755859199795,6.75623889,112850.0,112840.0,0.04653977]
[1755859201867,6.75819889,112850.0,112840.0,0.04653977]
[1755859203117,6.75819889,112850.0,112840.0,0.04442977]
[1755859203524,6.75819889,112850.0,112840.0,0.04648977]
[1755859204373,6.74170144,112850.0,112840.0,0.04648977]
[1755859204587,6.59186144,112850.0,112840.0,0.04648977]
[1755859204799,6.24678499,112850.0,112840.0,0.04648977]
[1755859205359,5.71917209,112850.0,112840.0,0.04888977]
[1755859205727,6.39930499,112850.0,112840.0,0.04648977]
[1755859206141,5.56665209,112850.0,112840.0,0.04648977]
[1755859206344,6.39934499,112850.0,112840.0,0.04648977]
[1755859206551,6.40239499,112850.0,112840.0,0.04648977]
[1755859207112,6.39934499,112850.0,112840.0,0.04648977]
[1755859207480,6.40435499,112850.0,112840.0,0.04648977]
[1755859207686,6.74442144,112850.0,112840.0,0.04648977]
[1755859207931,6.79155426,112850.0,112840.0,0.04648977]
[1755859208130,6.74442144,112850.0,112840.0,0.04648977]
[1755859209007,6.40435499,112850.0,112840.0,0.04648977]
[1755859209440,6.39048005,112850.0,112840.0,0.04648977]
[1755859210152,6.8091568,112850.0,112840.0,0.04442977]
[1755859212515,6.8230318,112850.0,112840.0,0.04442977]
[1755859216266,6.82565845,112850.0,112840.0,0.04442977]
[1755859216497,6.83184651,112850.0,112840.0,0.04442977]
[1755859217696,6.67928651,112850.0,112840.0,0.04442977]
[1755859217917,6.83176651,112850.0,112840.0,0.04442977]
[1755859218131,6.78463369,112850.0,112840.0,0.04442977]
[1755859219209,6.79850865,112850.0,112840.0,0.04442977]
[1755859220184,6.79232059,112850.0,112840.0,0.04442977]
[1755859224391,6.77581894,112850.0,112840.0,0.04442977]
[1755859224591,6.79231916,112850.0,112840.0,0.04442977]
[1755859225050,6.79231932,112850.0,112840.0,0.04442977]
[1755859226845,6.63983932,112850.0,112840.0,0.04442977]
[1755859227041,6.79195932,112850.0,112840.0,0.04442977]
[1755859228843,6.60796536,112850.0,112840.0,0.04442977]
[1755859228994,6.78519176,112850.0,112840.0,0.04442977]
[1755859229417,6.78511176,112850.0,112840.0,0.04442977]
[1755859230053,6.83224458,112850.0,112840.0,0.04442977]
[1755859232361,6.68020458,112850.0,112840.0,0.04442977]
[1755859232524,6.83236458,112850.0,112840.0,0.04442977]
[1755859233756,6.83236405,112850.0,112840.0,0.04442977]
[1755859235450,6.4922976,112850.0,112840.0,0.04442977]
[1755859236844,6.49229774,112850.0,112840.0,0.04442977]
[1755859240164,6.47842278,112850.0,112840.0,0.04442977]
[1755859240740,6.81848923,112850.0,112840.0,0.04442977]
[1755859240951,6.8246768,112850.0,112840.0,0.04442977]
[1755859241344,6.48461035,112850.0,112840.0,0.04442977]
[1755859242919,6.46192279,112850.0,112840.0,0.04442977]
[1755859243157,6.49848616,112850.0,112840.0,0.04442977]
[1755859243493,6.49848484,112850.0,112840.0,0.04442977]
[1755859243923,6.83855129,112850.0,112840.0,0.04442977]
[1755859246081,6.82467609,112850.0,112840.0,0.04442977]
[1755859246282,6.83855162,112850.0,112840.0,0.04442977]
[1755859248099,6.8385502,112850.0,112840.0,0.04442977]
[1755859248357,6.8381902,112850.0,112840.0,0.04442977]
[1755859249051,6.83204394,112850.0,112840.0,0.04442977]
[1755859249255,6.83822991,112850.0,112840.0,0.04442977]
[1755859249693,5.81803056,112850.0,112840.0,0.04442977]
[1755859249907,6.83822991,112850.0,112840.0,0.04442977]
[1755859252166,6.81554477,112850.0,112840.0,0.04442977]
[1755859252386,6.8382248,112850.0,112840.0,0.04442977]
[1755859254418,5.63470797,112850.0,112840.0,0.04442977]
[1755859254629,6.65490732,112850.0,112840.0,0.04442977]
[1755859254833,6.80706732,112850.0,112840.0,0.04442977]
[1755859255045,6.46700087,112850.0,112840.0,0.04442977]
[1755859255238,6.41994765,112850.0,112840.0,0.04442977]
[1755859255607,6.7600141,112850.0,112840.0,0.04442977]
[1755859256566,6.80714692,112850.0,112840.0,0.04442977]
[1755859258593,6.79327139,112850.0,112840.0,0.04442977]
[1755859260325,6.64103139,112850.0,112840.0,0.04442977]
[1755859260500,5.72681922,112850.0,112840.0,0.04442977]
[1755859260723,6.74701857,112850.0,112840.0,0.04442977]
[1755859261049,6.72433894,112850.0,112840.0,0.04442977]
[1755859261200,6.74701819,112850.0,112840.0,0.04442977]
[1755859261604,6.76089373,112850.0,112840.0,0.04442977]
[1755859262181,6.80802655,112850.0,112840.0,0.04442977]
[1755859262967,6.60777373,112850.0,112840.0,0.04442977]
[1755859263170,6.76141373,112850.0,112840.0,0.04442977]
[1755859263721,6.60777373,112850.0,112840.0,0.04442977]
[1755859263927,6.76145373,112850.0,112840.0,0.04442977]
[1755859266283,6.74757824,112850.0,112840.0,0.04442977]
[1755859269430,6.60158845,112850.0,112840.0,0.04442977]
[1755859269640,6.7612196,112850.0,112840.0,0.04442977]
[1755859275122,6.83894904,112850.0,112840.0,0.04442977]
[1755859275568,6.80835242,112850.0,112840.0,0.04442977]
[1755859276455,6.83894904,112850.0,112840.0,0.04442977]
[1755859278683,6.8188884,112850.0,112840.0,0.04442977]
[1755859278929,6.8250759,112850.0,112840.0,0.04442977]
[1755859279528,6.82507584,112850.0,112840.0,0.04442977]
[1755859284129,6.4918434,112850.0,112840.0,0.04442977]
[1755859284573,6.50571889,112850.0,112840.0,0.04442977]
[1755859285242,6.4918434,112850.0,112840.0,0.04442977]
[1755859286106,6.8318434,112850.0,112840.0,0.04442977]
[1755859287275,6.80124678,112850.0,112840.0,0.04442977]
[1755859288150,6.80124711,112850.0,112840.0,0.04442977]
[1755859288362,6.81512253,112850.0,112840.0,0.04442977]
[1755859296989,6.84571915,112850.0,112840.0,0.04442977]
[1755859297197,6.82303136,112850.0,112840.0,0.04442977]
[1755859297398,6.84572027,112850.0,112840.0,0.04442977]
[1755859297817,6.8457203,112850.0,112840.0,0.04442977]
[1755859300113,6.67062971,112850.0,112840.0,0.04442977]
[1755859300337,6.73882971,112850.0,112840.0,0.04442977]
[1755859301843,7.75902906,112850.0,112840.0,0.04442977]
[1755859302027,2.63462546,112840.0,112830.0,0.04460439]
[1755859302252,7.6632414,112840.0,112830.0,0.04508909]
[1755859302439,7.6664714,112840.0,112830.0,0.04508909]
[1755859302800,7.73319648,112840.0,112830.0,0.04508909]
[1755859303218,7.73419648,112840.0,112830.0,0.04508909]
[1755859303419,7.75319437,112840.0,112830.0,0.04508909]
[1755859304101,7.75519437,112840.0,112830.0,0.04508909]
[1755859304318,0.51725782,112830.0,112820.0,0.04532409]
[1755859304525,0.51725782,112830.0,112820.0,0.0454693]
[1755859304526,6.64615858,112830.0,112820.0,0.0454693]
[1755859304739,6.49319858,112830.0,112820.0,0.0454693]
[1755859304902,6.67278258,112830.0,112820.0,0.0454693]
[1755859305295,6.62639455,112830.0,112820.0,0.0454693]
[1755859305468,6.4873529,112830.0,112820.0,0.0454693]
[1755859305644,6.6402329,112830.0,112820.0,0.0454693]
[1755859305861,6.61063628,112830.0,112820.0,0.0474693]
[1755859306060,6.59675793,112830.0,112820.0,0.0474693]
[1755859306228,6.59775793,112830.0,112820.0,0.0474693]
[1755859306434,6.59773091,112830.0,112820.0,0.0474693]
[1755859307430,6.62214951,112830.0,112820.0,0.0474693]
[1755859307753,6.59155289,112830.0,112820.0,0.0474693]
[1755859309149,6.59147289,112830.0,112820.0,0.0474693]
[1755859309385,6.60535122,112830.0,112820.0,0.0474693]
[1755859309741,6.4525389,112830.0,112820.0,0.0474693]
[1755859310053,6.6052589,112830.0,112820.0,0.0474693]
[1755859311383,6.4525389,112830.0,112820.0,0.0474693]
[1755859311587,6.6052189,112830.0,112820.0,0.0474693]
[1755859311792,6.60521548,112830.0,112820.0,0.0474693]
[1755859313271,6.60513548,112830.0,112820.0,0.0474693]
[1755859314135,6.45253313,112830.0,112820.0,0.0474693]
[1755859314337,6.60513313,112830.0,112820.0,0.0474693]
[1755859314800,6.45253313,112830.0,112820.0,0.0474693]
[1755859315005,5.43233378,112830.0,112820.0,0.0474693]
[1755859315216,6.25979668,112830.0,112820.0,0.0495993]
[1755859315809,6.24334005,112830.0,112820.0,0.0495993]
[1755859316021,6.25979537,112830.0,112820.0,0.0495993]
[1755859316221,6.59986182,112830.0,112820.0,0.0495993]
[1755859316417,6.58598349,112830.0,112820.0,0.0495993]
[1755859317588,6.43338349,112830.0,112820.0,0.0495993]
[1755859317787,6.58590349,112830.0,112820.0,0.0495993]
[1755859319069,6.58590332,112830.0,112820.0,0.0495993]
[1755859319476,6.59978154,112830.0,112820.0,0.0495993]
[1755859320343,6.66798154,112830.0,112820.0,0.0495993]
[1755859321207,6.51546154,112830.0,112820.0,0.0495993]
[1755859321387,6.66782154,112830.0,112820.0,0.0495993]
[1755859322763,6.51546154,112830.0,112820.0,0.0495993]
[1755859323003,5.64758219,112830.0,112820.0,0.0519993]
[1755859323207,6.32771509,112830.0,112820.0,0.0519993]
[1755859323621,6.32771509,112830.0,112820.0,0.0495993]
[1755859324027,6.31125994,112830.0,112820.0,0.0495993]
[1755859324266,6.32772194,112830.0,112820.0,0.0495993]
[1755859325074,6.32772194,112830.0,112820.0,0.05944361]
[1755859325997,6.67287839,112830.0,112820.0,0.05731361]
[1755859326623,6.70347501,112830.0,112820.0,0.05731361]
[1755859328115,6.74986304,112830.0,112820.0,0.05731361]
[1755859328906,6.73598482,112830.0,112820.0,0.05731361]
[1755859329144,6.73598482,112830.0,112820.0,0.06184361]
[1755859329145,6.31380372,112830.0,112820.0,0.06184361]
[1755859329694,6.31380372,112830.0,112820.0,0.05944361]
[1755859330850,6.31691372,112830.0,112820.0,0.05944361]
[1755859331288,6.34751034,112830.0,112820.0,0.05944361]
[1755859331719,6.32084634,112830.0,112820.0,0.05944361]
[1755859331921,6.29024972,112830.0,112820.0,0.05944361]
[1755859332125,5.62088481,112830.0,112820.0,0.05944361]
[1755859332335,6.30101771,112830.0,112820.0,0.05944361]
[1755859332875,6.32767571,112830.0,112820.0,0.05944361]
[1755859333438,6.14288268,112830.0,112820.0,0.05944361]
[1755859333649,6.3200205,112830.0,112820.0,0.05944361]
[1755859333849,6.29336171,112830.0,112820.0,0.05944361]
[1755859335981,6.29845171,112830.0,112820.0,0.05731361]
[1755859336194,6.28259372,112830.0,112820.0,0.05944361]
[1755859336383,6.28259153,112830.0,112820.0,0.05944361]
[1755859336677,6.15708953,112830.0,112820.0,0.05944361]
[1755859337015,6.30601953,112830.0,112820.0,0.05944361]
[1755859337214,6.27936153,112830.0,112820.0,0.05944361]
[1755859338088,6.30601953,112830.0,112820.0,0.05944361]
[1755859338213,6.27936153,112830.0,112820.0,0.05944361]
[1755859338862,5.59922863,112830.0,112820.0,0.05944361]
[1755859339108,6.27936153,112830.0,112820.0,0.05944361]
[1755859339316,6.29323947,112830.0,112820.0,0.05944361]
[1755859339749,5.61310657,112830.0,112820.0,0.05944361]
[1755859340113,6.29323947,112830.0,112820.0,0.05944361]
[1755859340879,6.29837947,112830.0,112820.0,0.05944361]
[1755859342457,6.28188574,112830.0,112820.0,0.05944361]
[1755859342663,6.29838405,112830.0,112820.0,0.05944361]
[1755859343022,6.32504205,112830.0,112820.0,0.05944361]
[1755859343226,6.32504185,112830.0,112820.0,0.05944361]
[1755859343637,1.47207485,112830.0,112820.0,0.05944361]
[1755859343938,1.47423485,112830.0,112820.0,0.05944361]
[1755859346940,1.47423485,112830.0,112820.0,0.05731361]
[1755859348531,1.46003691,112830.0,112820.0,0.05731361]
[1755859349770,1.46007691,112830.0,112820.0,0.05935361]
[1755859350004,1.30831691,112830.0,112820.0,0.05935361]
[1755859350214,1.46007691,112830.0,112820.0,0.05935361]
[1755859351139,1.30831691,112830.0,112820.0,0.05935361]
[1755859351338,1.46007691,112830.0,112820.0,0.05935361]
[1755859351542,1.47395469,112830.0,112820.0,0.05935361]
[1755859351910,1.47396082,112830.0,112820.0,0.05935361]
[1755859352488,1.47396189,112830.0,112820.0,0.05935361]
[1755859354620,1.32220189,112830.0,112820.0,0.05935361]
[1755859354829,1.47380189,112830.0,112820.0,0.05935361]
[1755859356294,1.45992411,112830.0,112820.0,0.05935361]
[1755859356888,1.45992411,112830.0,112820.0,0.05731361]
[1755859357934,1.4434188,112830.0,112820.0,0.05731361]
[1755859358071,1.45992966,112830.0,112820.0,0.05731361]
[1755859359155,1.47380741,112830.0,112820.0,0.05731361]
[1755859361065,1.47381163,112830.0,112820.0,0.05731361]
[1755859361487,1.32221163,112830.0,112820.0,0.05731361]
[1755859361709,1.47361194,112830.0,112820.0,0.05731361]
[1755859365282,1.47361379,112830.0,112820.0,0.05731361]
[1755859365957,1.45973604,112830.0,112820.0,0.05731361]
[1755859366595,0.77960314,112830.0,112820.0,0.05731361]
[1755859366798,1.45973604,112830.0,112820.0,0.05731361]
[1755859367213,1.45973616,112830.0,112820.0,0.05731361]
[1755859368604,1.45973715,112830.0,112820.0,0.05731361]
[1755859368809,1.45949715,112830.0,112820.0,0.05942361]
[1755859369275,1.47337486,112830.0,112820.0,0.05731361]
[1755859370348,1.45685651,112830.0,112820.0,0.05731361]
[1755859370505,1.47337476,112830.0,112820.0,0.05731361]
[1755859371257,0.79324185,112830.0,112820.0,0.05731361]
[1755859371398,1.47337475,112830.0,112820.0,0.05731361]
[1755859379495,1.45949704,112830.0,112820.0,0.05731361]
[1755859379718,1.45949615,112830.0,112820.0,0.05731361]
[1755859381326,0.77936325,112830.0,112820.0,0.05731361]
[1755859381531,1.45937615,112830.0,112820.0,0.05731361]
[1755859381740,1.30833615,112830.0,112820.0,0.05731361]
[1755859382107,1.45937615,112830.0,112820.0,0.05942361]
[1755859382308,1.47325385,112830.0,112820.0,0.05942361]
[1755859382724,1.40505385,112830.0,112820.0,0.05942361]
[1755859382908,1.40505385,112830.0,112820.0,0.05731361]
[1755859383115,1.40505385,112830.0,112820.0,0.05942361]
[1755859383116,0.23631087,112830.0,112820.0,0.05942361]
[1755859383319,0.68424197,112830.0,112820.0,0.06182361]
[1755859383726,1.02430842,112830.0,112820.0,0.06182361]
[1755859383925,1.36430842,112830.0,112820.0,0.05942361]
[1755859384344,1.21326842,112830.0,112820.0,0.05942361]
[1755859384506,1.36430842,112830.0,112820.0,0.05942361]
[1755859384921,1.36944842,112830.0,112820.0,0.05942361]
[1755859385549,1.35416912,112830.0,112820.0,0.05942361]
[1755859385786,1.35162072,112830.0,112820.0,0.05942361]
[1755859386205,1.35357072,112830.0,112820.0,0.05942361]
[1755859388714,0.67343782,112830.0,112820.0,0.05942361]
[1755859388947,1.35357072,112830.0,112820.0,0.05942361]
[1755859389429,1.36744787,112830.0,112820.0,0.05731361]
[1755859390751,1.36744787,112830.0,112820.0,0.05942361]
[1755859390955,0.68217497,112830.0,112820.0,0.05942361]
[1755859391131,1.36744787,112830.0,112820.0,0.05942361]
[1755859391341,1.36744787,112830.0,112820.0,0.05731361]
[1755859397583,0.68731497,112830.0,112820.0,0.05731361]
[1755859397786,1.36744787,112830.0,112820.0,0.05731361]
[1755859398274,1.36744787,112830.0,112820.0,0.05940361]
[1755859398804,1.36744787,112830.0,112820.0,0.05731361]
[1755859405894,0.68731497,112830.0,112820.0,0.05731361]
[1755859406102,1.36744787,112830.0,112820.0,0.05731361]
[1755859406302,0.68731497,112830.0,112820.0,0.05731361]
[1755859406546,1.36744787,112830.0,112820.0,0.05731361]
[1755859406760,1.36740787,112830.0,112820.0,0.05731361]
[1755859408727,0.68727497,112830.0,112820.0,0.05731361]
[1755859408935,1.36740787,112830.0,112820.0,0.05731361]
[1755859410969,1.21640787,112830.0,112820.0,0.05940361]
[1755859411171,1.36840787,112830.0,112820.0,0.05631361]
[1755859411554,1.36840787,112830.0,112820.0,0.06040361]
[1755859412141,0.68827497,112830.0,112820.0,0.06040361]
[1755859412463,1.36740787,112830.0,112820.0,0.05731361]
[1755859412877,1.36840787,112830.0,112820.0,0.05831361]
[1755859414005,0.01487715,112830.0,112820.0,0.32696189]
[1755859414207,0.5059436,112830.0,112820.0,0.14728836]
[1755859414394,0.5059436,112830.0,112820.0,0.32456189]
[1755859414750,0.5059436,112830.0,112820.0,0.35121389]
[1755859415141,0.01487715,112830.0,112820.0,0.35121389]
[1755859415405,0.5059436,112830.0,112820.0,0.35121389]
[1755859416183,0.16587715,112830.0,112820.0,0.35121389]
[1755859416388,0.5059436,112830.0,112820.0,0.35121389]
[1755859416773,0.49206645,112830.0,112820.0,0.35121389]
[1755859417162,0.152,112830.0,112820.0,0.35121389]
[1755859417367,0.49206645,112830.0,112820.0,0.35121389]
[1755859418333,0.46807727,112830.0,112820.0,0.35121389]
[1755859419939,0.4819525,112830.0,112820.0,0.35121389]
[1755859420144,0.4850625,112830.0,112820.0,0.35121389]
[1755859420367,0.4819525,112830.0,112820.0,0.35121389]
[1755859420593,0.50494168,112830.0,112820.0,0.35121389]
[1755859421255,0.51012168,112830.0,112820.0,0.34912389]
[1755859421463,1.02744595,112830.0,112820.0,0.17185036]
[1755859421685,1.05804257,112830.0,112820.0,0.08496561]
[1755859421921,1.05804257,112830.0,112820.0,0.05831361]
[1755859423423,1.02744595,112830.0,112820.0,0.05831361]
[1755859430980,0.34731305,112830.0,112820.0,0.05831361]
[1755859431181,0.87644595,112830.0,112820.0,0.05831361]
[1755859431493,1.02740595,112830.0,112820.0,0.05831361]
[1755859442154,0.19631305,112830.0,112820.0,0.05831361]
[1755859442300,1.02736595,112830.0,112820.0,0.05831361]
[1755859442714,0.87644595,112830.0,112820.0,0.05831361]
[1755859442916,1.02736595,112830.0,112820.0,0.05831361]
[1755859444693,0.34723305,112830.0,112820.0,0.05831361]
[1755859444927,1.02736595,112830.0,112820.0,0.06031361]
[1755859445149,0.6872995,112830.0,112820.0,0.06031361]
[1755859445610,0.4580821,112830.0,112820.0,0.06031361]
[1755859445798,0.64921613,112830.0,112820.0,0.06340361]
[1755859446153,0.65120613,112830.0,112820.0,0.06031361]
[1755859446825,0.87325693,112830.0,112820.0,0.06031361]
[1755859447027,1.02417693,112830.0,112820.0,0.06031361]
[1755859447972,1.02417693,112830.0,112820.0,0.05831361]
[1755859447973,1.02729693,112830.0,112820.0,0.05831361]
[1755859448407,1.01342072,112830.0,112820.0,0.05831361]
[1755859451384,1.02729699,112830.0,112820.0,0.05831361]
[1755859451554,1.02417699,112830.0,112820.0,0.06031361]
[1755859451994,1.02729699,112830.0,112820.0,0.05831361]
[1755859452371,1.05395299,112830.0,112820.0,0.05831361]
[1755859453374,0.37070009,112830.0,112820.0,0.05831361]
[1755859453596,1.05395299,112830.0,112820.0,0.05831361]
[1755859459213,0.37382009,112830.0,112820.0,0.05831361]
[1755859459440,1.05395299,112830.0,112820.0,0.05831361]
[1755859468048,1.05395299,112830.0,112820.0,0.09029066]
[1755859471874,1.05383299,112830.0,112820.0,0.09029066]
[1755859472729,1.05071299,112830.0,112820.0,0.09029066]
[1755859473141,1.05379299,112830.0,112820.0,0.09029066]
[1755859474297,0.90299299,112830.0,112820.0,0.09029066]
[1755859474547,1.05071299,112830.0,112820.0,0.09232066]
[1755859475323,1.05071299,112830.0,112820.0,0.09551066]
[1755859475878,1.05071299,112830.0,112820.0,0.14345377]
[1755859477259,1.04872299,112830.0,112820.0,0.14345377]
[1755859478252,1.05073299,112830.0,112820.0,0.14345377]
[1755859478655,1.04872299,112830.0,112820.0,0.14345377]
[1755859480093,1.05073299,112830.0,112820.0,0.14026377]
[1755859480727,1.03993672,112830.0,112820.0,0.14026377]
[1755859482495,1.05381318,112830.0,112820.0,0.14026377]
[1755859484302,1.05381318,112830.0,112820.0,0.13823377]
[1755859484983,1.05073318,112830.0,112820.0,0.13823377]
[1755859487585,1.05392318,112830.0,112820.0,0.13823377]
[1755859491529,1.05392318,112830.0,112820.0,0.12823377]
[1755859491706,1.05392318,112830.0,112820.0,0.08029066]
[1755859497370,1.47090806,112830.0,112820.0,0.08029066]
[1755859497588,1.47090806,112830.0,112820.0,0.0384693]
[1755859497589,1.81097451,112830.0,112820.0,0.0384693]
[1755859498003,1.79709805,112830.0,112820.0,0.0384693]
[1755859498218,1.4570316,112830.0,112820.0,0.0384693]
[1755859498843,1.79709805,112830.0,112820.0,0.0384693]
[1755859500745,1.76650143,112830.0,112820.0,0.0384693]
[1755859500928,1.78037857,112830.0,112820.0,0.05015831]
[1755859503029,1.24312386,112830.0,112820.0,0.05015831]
[1755859503315,1.39380386,112830.0,112820.0,0.05015831]
[1755859504455,1.24312386,112830.0,112820.0,0.05015831]
[1755859504636,1.39380386,112830.0,112820.0,0.05015831]
[1755859506620,1.39061386,112830.0,112820.0,0.05015831]
[1755859506841,1.39057386,112830.0,112820.0,0.05212831]
[1755859507045,1.39057386,112830.0,112820.0,0.05533831]
[1755859507474,1.39057386,112830.0,112820.0,0.05212831]
[1755859507679,1.39057386,112830.0,112820.0,0.05533831]
[1755859508096,1.39057386,112830.0,112820.0,0.05212831]
[1755859508516,1.39057386,112830.0,112820.0,0.05533831]
[1755859508730,0.70843096,112830.0,112820.0,0.05533831]
[1755859508941,1.38856386,112830.0,112820.0,0.05533831]
[1755859509348,1.39067386,112830.0,112820.0,0.05533831]
[1755859512845,1.35585239,112830.0,112820.0,0.05212831]
[1755859513022,1.38250939,112830.0,112820.0,0.05212831]
[1755859519133,1.38555939,112830.0,112820.0,0.05212831]
[1755859519334,0.70237649,112830.0,112820.0,0.05212831]
[1755859519464,1.38250939,112830.0,112820.0,0.05212831]
[1755859524534,1.38250939,112830.0,112820.0,0.05015831]
[1755859524535,1.38555939,112830.0,112820.0,0.05015831]
[1755859525612,1.38250939,112830.0,112820.0,0.05015831]
[1755859526014,1.38555939,112830.0,112820.0,0.05015831]
[1755859528197,1.38250939,112830.0,112820.0,0.05015831]
[1755859529360,1.38555939,112830.0,112820.0,0.05015831]
[1755859532553,1.38555939,112830.0,112820.0,0.03015831]
[1755859533636,1.41615601,112830.0,112820.0,0.03015831]
[1755859535252,1.75622246,112830.0,112820.0,0.03015831]
[1755859537168,1.74215036,112830.0,112820.0,0.0184693]
[1755859537381,7.01000869,112830.0,112820.0,0.0184693]
[1755859537581,7.71378582,112830.0,112820.0,0.0184693]
[1755859537795,7.69990868,112830.0,112820.0,0.0184693]
[1755859538287,7.71893398,112830.0,112820.0,0.0184693]
[1755859538419,7.69990868,112830.0,112820.0,0.0184693]
[1755859539284,7.69990337,112830.0,112820.0,0.0184693]
[1755859539499,7.69990337,112830.0,112820.0,0.0154693]
[1755859539735,7.70290337,112830.0,112820.0,0.0154693]
[1755859540147,7.70190337,112830.0,112820.0,0.0164693]
[1755859540354,7.70590337,112830.0,112820.0,0.0174693]
[1755859540763,7.71778212,112830.0,112820.0,0.0164693]
[1755859541181,7.72078212,112830.0,112820.0,0.0164693]
[1755859543131,7.6980677,112830.0,112820.0,0.0164693]
[1755859543362,7.72057502,112830.0,112820.0,0.0164693]
[1755859546058,7.70669627,112830.0,112820.0,0.0164693]
[1755859548400,7.70051428,112830.0,112820.0,0.0164693]
[1755859549160,7.71439291,112830.0,112820.0,0.0164693]
[1755859549609,7.71438011,112830.0,112820.0,0.0164693]
[1755859549987,7.56390011,112830.0,112820.0,0.0164693]
[1755859550190,7.71434011,112830.0,112820.0,0.0164693]
[1755859551960,7.72051688,112830.0,112820.0,0.0164693]
[1755859552528,7.71433874,112830.0,112820.0,0.0164693]
[1755859552744,7.72051542,112830.0,112820.0,0.0164693]
[1755859555555,7.72051542,112830.0,112810.0,0.04644379]
[1755859555556,0.51727353,112820.0,112810.0,0.04644379]
[1755859555768,7.74318429,112820.0,112810.0,0.0465891]
[1755859556338,7.76985029,112820.0,112810.0,0.0465891]
[1755859556727,7.77185029,112820.0,112810.0,0.0465891]
[1755859556974,7.56972714,112820.0,112810.0,0.0465891]
[1755859557182,7.74900067,112820.0,112810.0,0.0465891]
[1755859557607,7.74589067,112820.0,112810.0,0.0465891]
[1755859557782,7.74900067,112820.0,112810.0,0.0465891]
[1755859561196,7.73252951,112820.0,112810.0,0.0465891]
[1755859561422,7.74900497,112820.0,112810.0,0.0465891]
[1755859562084,7.74900499,112820.0,112810.0,0.0465891]
[1755859562612,7.59856499,112820.0,112810.0,0.0465891]
[1755859562764,7.56485837,112820.0,112810.0,0.05889436]
[1755859562993,7.71320837,112820.0,112810.0,0.06199436]
[1755859563405,7.71525837,112820.0,112810.0,0.06199436]
[1755859563738,7.71525837,112820.0,112810.0,0.0486591]
[1755859563948,7.71526511,112820.0,112810.0,0.0486591]
[1755859564152,7.72144784,112820.0,112810.0,0.0486591]
[1755859564354,7.57104784,112820.0,112810.0,0.0486591]
[1755859564742,7.71526511,112820.0,112810.0,0.0486591]
[1755859565210,7.71526511,112820.0,112810.0,0.0465891]
[1755859565424,7.71837511,112820.0,112810.0,0.0465891]
[1755859566424,7.72456047,112820.0,112810.0,0.0465891]
[1755859566990,7.72456277,112820.0,112810.0,0.0465891]
[1755859569791,7.70808055,112820.0,112810.0,0.0465891]
[1755859569992,7.71840059,112820.0,112810.0,0.0465891]
[1755859570322,7.72459097,112820.0,112810.0,0.0465891]
[1755859570552,7.72459099,112820.0,112810.0,0.0465891]
[1755859570745,7.72459097,112820.0,112810.0,0.0465891]
[1755859570903,7.75518759,112820.0,112810.0,0.0465891]
[1755859571116,5.71478889,112820.0,112810.0,0.0465891]
[1755859571315,7.72459097,112820.0,112810.0,0.0465891]
[1755859573154,7.72459128,112820.0,112810.0,0.0465891]
[1755859577205,7.4094409,112820.0,112810.0,0.0465891]
[1755859579244,7.72674251,112820.0,112810.0,0.0465891]
[1755859579457,7.59904289,112820.0,112810.0,0.0465891]
[1755859579666,7.74940289,112820.0,112810.0,0.0465891]